bitfinex/quotes_ETHUSD_20241204
["timestamp","ask_amount","ask_price","bid_price","bid_amount"]
[1733338690085,1.5101,3831.4,3830.8,2.61039]
[1733338690246,4.86279,3831.6,3831.5,2.60994]
[1733338690445,1.5101,3831.8,3831.7,2.6098]
[1733338690686,1.5101,3832.3,3831.8,2.60971]
[1733338690842,6.37289,3832.3,3831.9,2.6096]
[1733338691046,5.5170267,3832.2,3831.9,2.6096]
[1733338691302,5.5170267,3832.2,3831.4,2.60995]
[1733338691585,5.5170267,3832.2,3831.6,2.60986]
[1733338691586,4.86279,3832.1,3831.6,2.60986]
[1733338692145,4.86279,3832.1,3830.9,1.6011]
[1733338692346,1.5442,3831.9,3830.2,2.61082]
[1733338692550,1.5442,3831.9,3831.1,2.6102]
[1733338692748,4.86279,3831.8,3830.1,1.5866]
[1733338692994,4.86279,3831.7,3831.2,2.61012]
[1733338693286,4.86279,3831.6,3831.2,2.61012]
[1733338693489,0.486279,3831.5,3830.7,2.61047]
[1733338693726,0.6542367,3832.2,3830.2,3.13037304]
[1733338693727,1.5442,3832.3,3831.1,1.5866]
[1733338693868,4.86279,3832.2,3832.1,2.60953]
[1733338694480,1.5642,3832.7,3832.5,2.60926]
[1733338694481,4.86279,3832.6,3832.5,2.60926]
[1733338694789,5.505569,3832.6,3831.8,1.5866]
[1733338694999,5.505569,3832.6,3831.5,0.52237131]
[1733338695188,5.505569,3832.6,3831.3,2.61003]
[1733338695419,5.505569,3832.6,3830.6,4.13212]
[1733338695420,2.60947,3832.2,3830.6,4.13212]
[1733338695695,1.5442,3832.0,3830.6,4.13212]
[1733338695903,1.5442,3832.0,3830.6,1.5216]
[1733338696083,1.5442,3832.0,3831.3,2.61006]
[1733338696286,1.5442,3832.0,3831.4,2.61]
[1733338696818,1.5442,3832.0,3831.0,2.61025]
[1733338697101,4.86279,3831.7,3831.0,2.61025]
[1733338697768,1.5442,3831.6,3830.7,2.61046]
[1733338698284,0.1860147,3831.9,3830.2,3.12495745]
[1733338698285,1.5442,3831.4,3830.2,0.51417745]
[1733338698482,7.47275,3831.5,3830.2,0.51417745]
[1733338698483,6.40699,3831.3,3830.3,2.61069]
[1733338698682,4.86279,3831.3,3830.9,2.61034]
[1733338698885,4.86279,3831.2,3831.1,2.61021]
[1733338699411,4.86279,3831.2,3830.8,2.61037]
[1733338699412,4.86279,3831.8,3831.7,2.6098]
[1733338699574,4.86279,3832.1,3832.0,2.6096]
[1733338699916,4.86279,3832.1,3831.8,2.60973]
[1733338700100,4.86279,3832.1,3831.9,2.60966]
[1733338700467,4.86279,3832.1,3831.9,2.60963]
[1733338700671,4.86279,3832.1,3831.8,2.6097]
[1733338700876,1.5442,3832.5,3831.9,2.60967]
[1733338700877,4.86279,3832.4,3831.9,2.60967]
[1733338701079,4.86279,3832.2,3830.8,1.5304]
[1733338701512,1.5442,3832.1,3831.5,2.60992]
[1733338701708,1.5442,3832.1,3831.2,2.61012]
[1733338702079,0.55,3832.0,3830.8,1.5304]
[1733338702282,4.86279,3831.9,3831.2,2.61008]
[1733338702512,4.86279,3831.9,3831.8,2.60973]
[1733338702715,4.86279,3832.0,3831.8,2.60973]
[1733338703512,1.5442,3832.1,3831.6,2.60986]
[1733338703513,4.86279,3831.9,3831.6,2.60986]
[1733338703685,1.5442,3832.1,3831.0,2.61022]
[1733338703686,4.86279,3831.8,3831.4,2.60998]
[1733338703897,5.503489,3831.8,3831.4,2.60998]
[1733338704302,5.503489,3831.8,3830.6,3.12280972]
[1733338704303,1.5442,3831.7,3830.6,3.12280972]
[1733338704498,1.5442,3831.7,3830.4,1.5024]
[1733338704702,1.5442,3831.7,3831.1,2.61015]
[1733338705629,1.5442,3831.7,3830.5,0.53089399]
[1733338705827,1.5442,3831.7,3831.2,2.61008]
[1733338706501,1.5442,3831.7,3830.5,0.53089399]
[1733338706705,1.5442,3831.7,3831.4,2.61]
[1733338707036,5.503489,3831.8,3831.4,2.61]
[1733338708290,5.503489,3831.8,3831.2,2.61013]
[1733338708486,0.7026489,3831.7,3831.2,2.61013]
[1733338708886,0.55,3831.6,3830.9,2.61028]
[1733338709090,0.7026489,3831.7,3830.5,3.14145399]
[1733338709091,2.0942,3831.4,3830.5,3.14145399]
[1733338709323,2.0942,3831.4,3830.5,2.61056]
[1733338710137,2.0942,3831.2,3830.0,1.6072]
[1733338710290,0.55,3831.0,3829.6,1.6072]
[1733338710495,0.55,3831.0,3830.4,2.61067]
[1733338711115,0.55,3831.0,3830.2,2.61081]
[1733338711816,0.55,3831.0,3830.4,2.61068]
[1733338712035,1.266641,3831.0,3830.4,2.61068]
[1733338713548,2.0942,3830.3,3828.7,2.61185]
[1733338713716,1.5442,3830.2,3829.0,2.61163]
[1733338713916,0.55,3830.1,3829.1,2.61155]
[1733338714306,2.0541,3829.9,3828.8,2.61172]
[1733338714614,0.521507,3829.8,3828.8,2.61172]
[1733338714825,0.55,3829.7,3828.8,2.61172]
[1733338715116,4.86279,3829.6,3828.8,2.61172]
[1733338715741,0.55,3829.3,3828.5,0.52990711]
[1733338716201,0.55,3828.9,3827.9,2.61233]
[1733338716405,4.86279,3828.7,3827.9,2.61233]
[1733338716601,4.86279,3828.7,3827.5,2.61267]
[1733338716843,6.38259,3829.4,3828.9,2.61169]
[1733338717031,4.86279,3829.3,3828.9,2.61168]
[1733338717353,4.86279,3829.2,3828.4,1.5091]
[1733338717551,4.86279,3829.2,3828.4,1.66001]
[1733338717711,4.86279,3829.2,3828.9,2.61168]
[1733338718551,4.86279,3829.2,3828.4,1.66001]
[1733338718729,4.86279,3829.2,3829.1,2.61157]
[1733338719052,3.0,3830.6,3828.6,0.51429704]
[1733338719053,4.86279,3829.9,3829.2,1.6078]
[1733338719252,4.86279,3830.0,3829.2,1.6078]
[1733338719537,4.86279,3830.0,3829.9,2.61103]
[1733338720122,4.86279,3830.0,3829.6,2.61119]
[1733338720567,4.86279,3829.9,3828.8,4.21953]
[1733338720725,4.85101091,3829.9,3829.2,2.6115]
[1733338721052,4.85101091,3829.9,3828.3,1.6655]
[1733338721053,2.0942,3829.8,3828.3,1.6655]
[1733338721219,2.61118,3829.7,3828.4,2.61198]
[1733338721427,0.55,3829.6,3828.5,2.61195]
[1733338721740,0.55,3829.7,3828.6,2.61185]
[1733338721954,0.95563309,3829.6,3828.6,2.61185]
[1733338722256,0.55,3829.5,3828.6,2.61185]
[1733338723025,0.55,3829.5,3828.3,1.6655]
[1733338723221,0.55,3829.5,3828.5,2.61196]
[1733338724373,4.85101091,3829.4,3828.5,2.61196]
[1733338724677,6.94521091,3829.1,3828.0,2.61231]
[1733338724962,6.94521091,3829.1,3827.5,2.61263]
[1733338725353,6.94521091,3829.1,3827.9,2.61238]
[1733338725980,9.55680091,3829.1,3827.9,2.61238]
[1733338726150,0.55,3828.9,3827.7,2.61251]
[1733338726481,0.55,3828.9,3827.6,3.1300732]
[1733338726778,1.5442,3828.7,3827.6,0.5174732]
[1733338727138,0.55,3828.5,3827.6,0.5174732]
[1733338727334,4.85101091,3828.3,3827.6,0.5174732]
[1733338727789,1.5442,3828.2,3827.1,2.61294]
[1733338727951,1.5442,3828.2,3827.0,1.6226]
[1733338727952,1.5442,3828.2,3827.2,0.52467918]
[1733338728139,1.5442,3828.2,3827.0,1.6226]
[1733338728338,0.55,3828.0,3826.8,2.61309]
[1733338728673,0.55,3828.0,3826.9,0.419259]
[1733338728840,4.85101091,3827.9,3826.9,2.61306]
[1733338729161,4.85101091,3827.9,3826.7,1.5795]
[1733338729162,4.85101091,3827.9,3826.7,4.1927]
[1733338729364,0.55,3827.7,3826.7,2.6132]
[1733338729570,0.55,3827.7,3826.5,2.61334]
[1733338729885,4.11830109,3827.7,3826.5,0.419284]
[1733338730044,0.55,3827.5,3826.5,0.419284]
[1733338730266,0.55,3827.5,3826.5,2.61334]
[1733338730498,0.55,3827.5,3826.3,0.53112739]
[1733338730802,1.5442,3827.5,3826.3,3.14460739]
[1733338731004,0.55,3827.0,3825.6,1.6121]
[1733338731166,1.24452109,3827.0,3825.9,2.61373]
[1733338731384,0.55,3827.0,3826.1,2.61362]
[1733338731573,6.39521091,3827.3,3826.2,0.02613574]
[1733338731779,6.39521091,3827.3,3825.7,0.16121]
[1733338731780,6.39521091,3827.3,3826.6,2.61327]
[1733338732109,1.5442,3827.7,3826.5,1.5348]
[1733338732306,1.5442,3827.7,3826.6,2.61328]
[1733338732474,1.5442,3827.7,3826.9,2.61307]
[1733338732475,4.85101091,3827.6,3826.9,2.61307]
[1733338733203,4.85101091,3827.6,3826.7,0.414808]
[1733338733500,4.85101091,3827.6,3826.7,3.027978]
[1733338734670,4.85101091,3827.6,3827.1,2.61288]
[1733338735363,4.85101091,3827.6,3826.9,2.61306]
[1733338735571,4.85101091,3827.6,3826.9,0.3027868]
[1733338735899,4.85101091,3827.6,3827.0,0.52308238]
[1733338736200,4.85101091,3827.6,3826.7,2.6132]
[1733338736405,4.85101091,3827.5,3826.8,2.61314]
[1733338736579,4.85101091,3827.5,3826.9,2.61306]
[1733338739345,4.85101091,3827.4,3826.9,2.61306]
[1733338739507,4.85101091,3827.4,3826.8,0.51724677]
[1733338739712,4.85101091,3827.4,3827.0,2.61299]
[1733338740419,4.85101091,3827.4,3826.8,0.51724677]
[1733338740618,4.85101091,3827.4,3826.5,2.61334]
[1733338740836,4.85101091,3827.3,3826.3,2.61348]
[1733338741237,4.85101091,3827.3,3826.4,2.61341]
[1733338742042,4.85101091,3827.3,3826.4,0.261341]
[1733338742218,2.81151,3829.2,3825.7,0.68207024]
[1733338742219,4.85101091,3827.6,3827.5,2.61267]
[1733338742963,1.5442,3828.3,3827.0,1.6235]
[1733338743244,4.85101091,3828.6,3828.3,2.6121]
[1733338743433,6.39521091,3828.8,3828.4,2.61202]
[1733338743603,4.85101091,3828.8,3828.4,2.61203]
[1733338743805,4.85101091,3828.8,3827.9,2.61233]
[1733338744009,4.85101091,3828.8,3827.8,1.6235]
[1733338744010,4.85101091,3828.8,3828.0,0.423583]
[1733338744208,4.85101091,3828.8,3827.1,1.6235]
[1733338744454,4.85101091,3828.7,3827.1,1.6235]
[1733338744650,4.85101091,3828.7,3827.8,2.61244]
[1733338744824,1.5442,3828.6,3828.1,0.51805537]
[1733338745018,4.85101091,3828.5,3828.1,0.51805537]
[1733338745777,4.85101091,3828.4,3827.7,2.6125]
[1733338746144,4.85101091,3828.4,3827.1,1.6235]
[1733338746340,4.85101091,3828.4,3827.7,2.6125]
[1733338747144,4.85101091,3828.4,3827.9,0.52145194]
[1733338747949,0.55,3828.3,3827.9,0.52145194]
[1733338748276,4.85101091,3828.4,3827.9,0.52145194]
[1733338748277,4.85101091,3828.4,3827.9,2.61238]
[1733338748477,1.5442,3828.9,3827.6,2.6126]
[1733338748649,1.5442,3828.9,3827.8,0.51680125]
[1733338748850,1.73801234,3829.2,3828.6,2.61191]
[1733338749082,1.5442,3829.2,3828.6,2.61191]
[1733338749245,1.5442,3829.2,3828.3,2.61211]
[1733338749452,1.5442,3829.2,3828.4,2.61204]
[1733338750684,1.5442,3829.2,3828.4,2.61199]
[1733338750848,1.5442,3829.2,3828.3,2.61208]
[1733338751390,1.5442,3829.2,3828.0,2.61228]
[1733338751391,0.55,3829.1,3828.0,2.61228]
[1733338752272,0.55,3829.1,3828.4,0.52551571]
[1733338752444,4.85101091,3828.8,3827.4,1.6028]
[1733338752645,4.85101091,3828.8,3828.3,2.61211]
[1733338752984,4.85101091,3828.9,3828.5,2.61192]
[1733338753785,4.85101091,3828.9,3828.5,2.61193]
[1733338753991,4.85101091,3828.9,3828.3,2.61212]
[1733338754187,4.85101091,3828.9,3828.8,2.61178]
[1733338754951,4.85101091,3830.1,3828.8,2.61178]
[1733338755297,6.39521091,3830.0,3829.3,2.61137]
[1733338755496,6.39521091,3830.0,3829.4,2.61137]
[1733338755688,6.39521091,3830.0,3828.6,4.19782]
[1733338755689,6.39521091,3830.0,3829.0,2.61158]
[1733338755895,0.63952109,3829.9,3828.7,2.61178]
[1733338756204,0.63952109,3829.9,3828.8,0.51070431]
[1733338756205,2.61118,3829.7,3828.8,0.51070431]
[1733338756548,2.61118,3829.7,3828.2,1.6597]
[1733338756549,0.55,3829.7,3828.2,1.6597]
[1733338756723,0.55,3829.5,3828.2,1.6597]
[1733338756999,3.1613,3829.5,3828.4,2.61204]
[1733338757204,4.85101091,3829.2,3828.4,2.61204]
[1733338757384,4.85101091,3829.2,3828.2,1.6597]
[1733338757589,6.92761091,3829.1,3828.0,2.61229]
[1733338757797,0.55,3828.9,3827.9,2.61237]
[1733338758164,0.55,3828.7,3827.7,3.1337136]
[1733338758361,2.06670109,3828.6,3827.2,2.61281]
[1733338758572,6.917712,3828.6,3827.0,1.6597]
[1733338758806,0.55,3828.5,3827.5,2.61266]
[1733338759594,0.55,3828.5,3827.5,3.13438595]
[1733338760338,4.85101091,3828.2,3827.5,0.52172595]
[1733338760639,1.5266,3827.8,3827.1,2.61293]
[1733338760813,1.5266,3827.8,3826.7,1.6597]
[1733338760814,6.37761091,3827.8,3826.9,2.61307]
[1733338761014,4.85101091,3827.6,3826.9,2.61307]
[1733338761214,8.79,3827.7,3826.9,3.13155736]
[1733338761442,1.18952109,3827.6,3826.9,0.51848736]
[1733338761739,1.18952109,3827.6,3826.6,2.61327]
[1733338762901,1.18952109,3827.6,3826.6,0.52544966]
[1733338763833,1.18952109,3827.6,3826.8,2.61314]
[1733338764060,1.5266,3827.8,3826.7,2.61316]
[1733338764198,1.5266,3827.8,3827.2,2.61281]
[1733338764843,1.5266,3827.8,3827.0,2.613]
[1733338765041,1.5266,3827.8,3827.0,2.61296]
[1733338765201,1.5266,3827.8,3827.2,2.61286]
[1733338766110,1.5266,3827.8,3827.3,2.6128]
[1733338766334,8.79,3827.7,3827.4,2.61271]
[1733338766535,10.3166,3827.8,3826.8,1.6153]
[1733338766720,10.3166,3827.8,3827.5,2.61263]
[1733338767022,10.3166,3827.8,3827.3,2.61274]
[1733338767434,10.3166,3827.8,3826.9,2.82710497]
[1733338767645,10.3166,3827.8,3827.4,2.61272]
[1733338769232,10.3166,3827.8,3827.2,0.51609835]
[1733338769433,8.79,3827.8,3827.2,0.51609835]
[1733338769828,8.79,3827.8,3827.5,2.61266]
[1733338770470,8.79,3827.8,3827.3,2.61279]
[1733338770653,8.79,3827.8,3827.2,3.12896835]
[1733338770831,8.79,3827.8,3827.4,2.61273]
[1733338771273,1.5442,3827.7,3827.2,0.51609835]
[1733338771608,1.5442,3828.1,3826.8,1.5498]
[1733338771730,8.79,3828.5,3827.5,1.5498]
[1733338771731,8.79,3828.4,3827.5,1.5498]
[1733338771935,1.5442,3828.5,3828.2,2.61218]
[1733338772234,1.5442,3828.5,3828.3,2.61212]
[1733338772775,1.5442,3828.5,3827.6,0.53139553]
[1733338772776,1.5442,3828.5,3827.8,2.61243]
[1733338772977,1.5442,3828.5,3827.6,0.53139553]
[1733338772978,1.69862,3828.5,3827.6,0.53139553]
[1733338773273,1.5442,3828.8,3828.3,2.61211]
[1733338773472,1.5442,3828.8,3827.5,1.5498]
[1733338773771,8.79,3828.7,3828.5,2.61196]
[1733338773976,0.15442,3828.7,3827.5,1.5498]
[1733338774130,10.3342,3828.8,3828.3,2.61209]
[1733338774646,10.3342,3828.8,3828.3,3.12937145]
[1733338774851,10.3342,3828.8,3828.3,0.51728145]
[1733338775057,10.3342,3829.3,3829.1,2.61154]
[1733338775239,8.79,3829.2,3829.1,2.61154]
[1733338775676,8.79,3829.2,3828.9,2.6117]
[1733338775845,8.79,3829.2,3828.5,2.61192]
[1733338776358,8.79,3829.2,3828.3,2.10368145]
[1733338776567,8.79,3829.2,3828.5,2.61196]
[1733338776739,8.79,3829.2,3828.8,2.61173]
[1733338778044,8.79,3829.2,3828.6,2.6119]
[1733338778248,8.79,3829.2,3828.4,2.61205]
[1733338778471,8.79,3829.2,3828.3,0.51728145]
[1733338778637,8.79,3829.2,3828.8,2.61177]
[1733338778978,8.79,3829.2,3828.7,2.61179]
[1733338780584,8.79,3829.2,3828.5,2.61196]
[1733338780982,8.79,3829.2,3828.6,2.61186]
[1733338781854,8.79,3829.2,3828.3,0.51728145]
[1733338782058,8.79,3829.2,3828.6,2.61191]
[1733338784691,8.79,3829.2,3828.6,2.61187]
[1733338785196,8.79,3829.2,3828.3,0.51728145]
[1733338785416,4.15585,3829.0,3827.7,1.5648]
[1733338785697,0.55,3828.7,3827.9,2.61234]
[1733338785866,0.55,3828.7,3827.7,1.5648]
[1733338786060,0.55,3828.7,3827.9,2.61233]
[1733338786392,0.55,3828.7,3827.7,1.5648]
[1733338786393,0.55,3828.7,3827.7,4.17732]
[1733338786707,0.55,3828.7,3827.8,2.61245]
[1733338786900,0.55,3828.5,3827.9,2.61239]
[1733338787097,0.55,3828.5,3827.9,2.61234]
[1733338788272,8.79,3828.8,3827.7,1.5648]
[1733338788481,1.5442,3829.8,3827.7,0.02612196]
[1733338788785,1.5442,3829.8,3828.8,2.61171]
[1733338789095,1.03342,3829.7,3828.8,2.61171]
[1733338789680,0.55,3829.6,3828.7,2.61181]
[1733338790101,0.55,3829.6,3828.8,2.61172]
[1733338790311,1.03342,3829.7,3829.3,2.61137]
[1733338790542,1.5442,3829.8,3829.3,2.61144]
[1733338791401,1.5442,3829.8,3828.9,1.5003]
[1733338791619,1.5442,3829.8,3829.2,2.6115]
[1733338791813,1.5442,3829.8,3828.9,1.5003]
[1733338792041,1.5442,3829.8,3829.3,2.61144]
[1733338792201,2.57762,3829.8,3828.9,1.5003]
[1733338792534,1.5442,3830.2,3829.7,2.61114]
[1733338792843,10.3342,3830.2,3829.8,2.61109]
[1733338793052,8.79,3830.2,3829.3,0.02611125]
[1733338793203,8.79,3830.2,3829.9,2.61103]
[1733338794035,8.79,3830.2,3829.4,2.61133]
[1733338794036,8.79,3830.2,3829.6,1.508]
[1733338794272,8.79,3830.2,3829.9,2.61103]
[1733338795462,9.669,3830.2,3829.0,4.23469]
[1733338795654,9.669,3830.2,3829.5,2.6113]
[1733338796336,8.79,3830.1,3829.5,2.6113]
[1733338796975,8.79,3830.1,3829.7,2.61115]
[1733338797380,8.79,3830.1,3829.5,2.61129]
[1733338797584,8.79,3830.1,3829.4,0.51562597]
[1733338798655,8.79,3830.1,3829.6,2.61119]
[1733338798975,8.79,3830.1,3829.6,2.6112]
[1733338799178,2.0942,3830.0,3829.4,0.51562597]
[1733338799340,8.79,3829.9,3829.4,0.51562597]
[1733338799545,8.79,3829.9,3829.0,1.6231]
[1733338799546,2.61157,3829.1,3829.0,5.97e-06]
[1733338799744,16.53907,3829.1,3829.0,5.97e-06]
[1733338800190,16.53907,3829.1,3826.0,2.63981193]
[1733338800191,1.5727,3828.6,3826.9,2.61306]
[1733338800371,6.40384252,3829.1,3826.7,2.61321]
[1733338800372,0.55,3828.0,3826.7,2.61321]
[1733338800702,9.82626343,3828.5,3826.6,0.51548732]
[1733338800703,1.5727,3827.4,3826.6,0.51548732]
[1733338800985,0.55,3827.3,3825.7,2.77509]
[1733338801148,0.55,3827.0,3826.0,0.53475349]
[1733338801344,0.55,3826.8,3824.6,4.50664517]
[1733338801545,0.55,3826.0,3824.8,0.53506676]
[1733338801759,0.55,3826.0,3824.7,0.83239053]
[1733338801974,0.55,3825.8,3824.6,0.53511897]
[1733338802180,0.55,3825.8,3823.5,0.40893751]
[1733338802486,0.55,3825.2,3823.8,0.53491012]
[1733338802792,0.55,3825.2,3824.4,2.61475]
[1733338802957,8.78999403,3825.1,3824.0,0.02614781]
[1733338803160,8.78999403,3825.1,3824.9,2.61443]
[1733338803346,8.78999403,3825.1,3824.7,2.61458]
[1733338803347,8.78999403,3825.7,3825.0,3.137241]
[1733338803688,1.563,3825.9,3825.4,2.61407]
[1733338803689,8.78999403,3825.9,3825.4,2.61407]
[1733338803986,8.78999403,3825.9,3825.3,2.61413]
[1733338804595,0.55,3826.1,3825.0,1.03590249]
[1733338804882,8.78999403,3826.3,3825.1,0.02614022]
[1733338805081,8.78999403,3826.5,3826.3,2.61347]
[1733338805247,8.78999403,3826.7,3826.4,2.61341]
[1733338805449,8.78999403,3826.8,3826.4,2.61341]
[1733338805887,8.78999403,3826.8,3825.7,2.6139]
[1733338806190,1.6665,3827.1,3825.8,3.04107]
[1733338806191,8.78999403,3826.7,3825.8,3.04107]
[1733338806372,8.78999403,3826.7,3825.6,0.52774531]
[1733338806683,8.78999403,3826.7,3824.7,0.26777736]
[1733338806684,0.55,3826.6,3826.1,2.61357]
[1733338806891,8.78999403,3826.7,3825.4,0.52554942]
[1733338807051,8.78999403,3826.7,3825.1,3.02613611]
[1733338807052,8.78999403,3826.7,3826.2,2.61355]
[1733338807662,8.78999403,3826.7,3825.9,2.61373]
[1733338807863,8.78999403,3826.7,3825.9,0.261373]
[1733338808050,8.78999403,3826.7,3825.9,2.61369]
[1733338808547,8.78999403,3826.7,3825.8,0.53349645]
[1733338808775,8.78999403,3826.7,3826.0,2.61369]
[1733338809089,8.78999403,3826.7,3826.1,2.61362]
[1733338809584,8.78999403,3826.7,3826.5,2.6133]
[1733338809759,8.78999403,3827.0,3826.5,0.26133]
[1733338809959,8.78999403,3827.0,3826.8,2.61311]
[1733338810158,1.6176,3827.6,3826.8,2.61311]
[1733338810364,8.78999403,3827.5,3826.8,2.61311]
[1733338810659,8.78999403,3827.5,3825.8,0.53349645]
[1733338810660,1.6439,3826.9,3825.8,0.53349645]
[1733338810877,2.61337,3826.5,3825.2,2.61417]
[1733338811197,8.78999403,3826.6,3825.2,2.61417]
[1733338811198,4.25922,3826.4,3825.2,0.52289664]
[1733338811556,0.55,3826.3,3825.2,0.52289664]
[1733338811755,1.6458,3826.4,3824.7,2.61453]
[1733338811977,0.55,3826.3,3825.2,2.61424]
[1733338812285,1.81038,3826.4,3825.1,2.61431]
[1733338812492,0.55,3826.3,3825.5,2.61398]
[1733338813988,0.55,3826.3,3825.0,0.51186904]
[1733338814174,0.55,3826.1,3825.3,2.61411]
[1733338814471,1.81038,3826.4,3825.6,2.61395]
[1733338814661,1.81038,3826.4,3825.0,0.51186904]
[1733338814662,0.55,3826.3,3825.4,2.61404]
[1733338815104,0.55,3826.3,3825.5,2.61403]
[1733338815282,0.55,3826.3,3825.0,3.12619904]
[1733338815495,0.55,3826.1,3824.9,2.61437]
[1733338815812,2.1573,3825.8,3824.7,2.61457]
[1733338816094,2.1573,3825.8,3824.2,2.61486]
[1733338816095,0.55,3825.6,3824.5,0.52357443]
[1733338816253,0.55,3825.2,3824.2,2.61492]
[1733338816457,0.55,3825.0,3824.2,2.61492]
[1733338816682,0.55,3825.0,3823.8,1.5027]
[1733338817205,0.55,3825.0,3824.3,0.53209421]
[1733338817372,0.55,3824.8,3822.8,1.6472]
[1733338817564,0.55,3824.8,3823.7,2.61526]
[1733338817565,1.5007,3824.5,3823.7,2.61526]
[1733338817762,8.79,3824.4,3822.9,3.0]
[1733338818095,1.5007,3824.5,3823.8,2.61518]
[1733338818303,1.5007,3824.5,3823.7,0.51427062]
[1733338819070,8.79,3824.4,3823.7,0.51427062]
[1733338819598,8.79,3824.4,3823.0,0.53240233]
[1733338819755,8.79,3824.4,3822.3,2.61621]
[1733338819756,0.55,3824.3,3822.3,2.61621]
[1733338819960,0.55,3824.3,3822.4,1.5968]
[1733338820161,8.79,3824.4,3823.7,2.6152]
[1733338820397,10.2907,3824.5,3823.7,2.6152]
[1733338820632,10.2907,3824.5,3823.8,2.61519]
[1733338820633,8.79,3824.4,3823.8,2.61519]
[1733338820773,9.81907,3824.3,3823.6,2.61533]
[1733338820970,8.79,3824.4,3823.6,2.61533]
[1733338821213,8.79,3824.4,3823.7,2.6152]
[1733338821396,8.79,3824.4,3823.4,1.5968]
[1733338821599,8.79,3824.4,3823.8,2.61513]
[1733338821795,0.55,3824.3,3823.4,0.51620456]
[1733338821997,1.63407,3824.3,3823.4,3.13160456]
[1733338822210,0.55,3824.3,3823.4,0.51620456]
[1733338822396,8.79,3824.4,3824.2,2.61489]
[1733338822720,8.79,3824.6,3824.2,2.61489]
[1733338822881,8.79,3824.6,3823.0,4.24048]
[1733338822882,0.55,3824.9,3823.8,2.61516]
[1733338823081,0.55,3824.9,3823.0,1.6248]
[1733338823082,2.61452,3824.8,3823.4,2.61542]
[1733338823317,0.55,3824.4,3823.1,2.61561]
[1733338823481,8.79,3824.3,3823.3,0.52740425]
[1733338823684,1.09579,3824.3,3823.3,0.52740425]
[1733338823990,0.55,3824.4,3823.3,0.52740425]
[1733338824208,0.55,3824.4,3823.5,2.6154]
[1733338824418,0.55,3824.4,3823.3,0.52740425]
[1733338824938,0.55,3824.4,3823.2,2.61556]
[1733338825139,0.55,3824.4,3823.2,0.53420204]
[1733338825434,0.55,3824.1,3823.2,0.53420204]
[1733338825595,8.79,3824.0,3823.2,0.53420204]
[1733338825793,8.79,3824.0,3823.9,2.61513]
[1733338826415,8.79,3824.0,3823.9,4.24203]
[1733338826933,1.6382,3825.1,3823.9,1.6269]
[1733338827120,1.6382,3825.1,3824.3,2.61483]
[1733338827331,10.4282,3825.1,3824.0,0.424215]
[1733338827506,10.4282,3825.1,3824.1,2.61498]
[1733338827825,10.4282,3825.1,3823.9,1.6269]
[1733338827997,10.4282,3825.1,3823.4,1.6149]
[1733338827998,13.04253,3825.1,3823.4,1.6149]
[1733338828204,1.304253,3825.0,3823.8,3.13276359]
[1733338828395,10.094253,3825.0,3823.8,3.13276359]
[1733338828604,10.094253,3825.0,3823.8,0.51757359]
[1733338829019,8.79,3825.0,3824.4,2.61473]
[1733338829259,8.79,3825.0,3824.1,2.61499]
[1733338829395,1.6382,3825.1,3824.2,4.23696]
[1733338829594,1.6382,3825.1,3824.5,2.61467]
[1733338830033,1.6382,3825.1,3824.2,1.6221]
[1733338830034,1.6382,3825.1,3824.6,2.61463]
[1733338830540,1.6382,3825.1,3824.4,2.61478]
[1733338830939,1.6382,3825.1,3823.8,0.51757359]
[1733338830940,0.55,3824.9,3823.8,0.51757359]
[1733338831241,0.55,3824.9,3823.9,2.61513]
[1733338831601,0.55,3824.9,3823.6,2.61527]
[1733338831602,2.61453,3824.8,3823.6,2.61527]
[1733338831828,2.61453,3824.8,3823.4,1.5769]
[1733338831829,0.55,3824.7,3823.4,1.5769]
[1733338832163,8.79,3825.0,3823.4,1.996147]
[1733338832319,8.79,3825.0,3824.2,2.61487]
[1733338833059,8.79,3825.0,3823.7,0.52686614]
[1733338833421,1.6382,3825.1,3824.6,2.61462]
[1733338833617,10.2906,3825.6,3823.9,2.61513]
[1733338833820,8.98304997,3825.5,3824.4,2.61473]
[1733338834054,8.98304997,3825.5,3823.8,1.6105]
[1733338834055,1.24141497,3825.4,3823.8,1.6105]
[1733338834258,1.72394997,3825.3,3823.8,1.6105]
[1733338834561,0.19304997,3825.2,3824.2,0.51405118]
[1733338834760,1.5309,3825.3,3824.2,0.51405118]
[1733338835056,2.61431,3825.1,3824.2,0.51405118]
[1733338835219,8.79,3824.7,3823.7,2.61521]
[1733338835424,8.79,3824.7,3823.7,2.61522]
[1733338836059,8.79,3824.7,3823.8,2.61519]
[1733338836264,8.79,3824.7,3823.9,2.6151]
[1733338836955,8.79,3824.7,3823.8,0.51263953]
[1733338837125,0.45885477,3824.6,3823.8,3.12780953]
[1733338837521,0.45885477,3824.6,3823.8,0.51263953]
[1733338838539,8.79,3824.5,3823.8,0.51263953]
[1733338838943,8.79,3824.5,3823.8,3.12782953]
[1733338839152,8.79,3824.5,3823.8,0.51263953]
[1733338839365,8.79,3824.5,3823.8,3.12782953]
[1733338840049,8.79,3824.5,3823.8,0.51263953]
[1733338840251,0.19339371,3824.4,3823.8,0.51263953]
[1733338840447,9.71488548,3824.5,3823.8,0.51263953]
[1733338840642,9.71488548,3824.5,3823.0,1.6632]
[1733338840643,8.79,3824.3,3823.0,1.6632]
[1733338840837,0.92488548,3824.5,3822.7,0.2607]
[1733338840838,0.55,3824.0,3822.7,0.2607]
[1733338841046,8.79,3823.7,3822.8,0.51943638]